[Event "WJCC U20 Girls 2019"]
[Site "New Delhi"]
[Date "2019.10.24"]
[Round "10.23"]
[White "Pychova, Nela"]
[Black "Fretel, Liza"]
[Result "1-0"]
[ECO "B24"]
[WhiteElo "2178"]
[BlackElo "1877"]
[Annotator "NA"]
[PlyCount "192"]
[EventDate "2019.10.15"]
[EventType "swiss"]
[EventCountry "IND"]
[SourceTitle "playchess.com"]
[Source "ChessBase"]
[SourceQuality "1"]
[TimeControl "40/5400+30:1800+30"]

1. e4 {[%emt 0:00:00]} c5 {[%emt 0:00:00]} 2. Nc3 {[%emt 0:00:00]} Nc6 {[%emt 0:00:05]} 3. Bb5 {[%emt 0:00:00]} Na5 {[%emt 0:01:27]} 4. a4 {[%emt 0:25:58]} a6 {[%emt 0:00:46]} 5. Be2 {[%emt 0:00:34]} e6 {[%emt 0:02:34]} 6. Nf3 {[%emt 0:05:46]} Qc7 {[%emt 0:02:48]} 7. O-O {[%emt 0:01:45]} Nf6 {[%emt 0:01:44]} 8. Re1 {[%emt 0:00:39]} d6 {[%emt 0:01:23]} 9. Bf1 {[%emt 0:03:31]} Be7 {[%emt 0:01:05]} 10. b3 {[%emt 0:06:29]} O-O {[%emt 0:01:54]} 11. Ba3 {[%emt 0:01:32]} Nc6 {[%emt 0:05:16]} 12. d3 {[%emt 0:19:20]} b6 {[%emt 0:04:00]} 13. Qd2 {[%emt 0:00:37]} Bb7 {[%emt 0:01:52]} 14. h3 {[%emt 0:03:09]} Rac8 {[%emt 0:01:47]} 15. Ne2 {[%emt 0:06:20]} d5 {[%emt 0:04:12]} 16. exd5 {[%emt 0:06:52]} Nxd5 {[%emt 0:00:09]} 17. Bb2 {[%emt 0:00:28]} Bf6 {[%emt 0:09:06]} 18. Bxf6 {[%emt 0:00:11]} Nxf6 {[%emt 0:00:43]} 19. Ng3 {[%emt 0:01:17]} Nd4 {[%emt 0:04:41]} 20. Ne5 {[%emt 0:03:18]} Nd7 {[%emt 0:02:22]} 21. Nxd7 {[%emt 0:01:24]} Qxd7 {[%emt 0:00:03]} 22. Rab1 {[%emt 0:00:25]} Bd5 {[%emt 0:03:42]} 23. Ne2 {[%emt 0:02:29]} e5 {[%emt 0:02:58]} 24. Nc3 {[%emt 0:04:02]} Rfe8 {[%emt 0:07:15]} 25. Nxd5 {[%emt 0:00:22]} Qxd5 {[%emt 0:00:03]} 26. Qd1 {[%emt 0:00:56]} a5 {[%emt 0:05:28]} 27. c3 {[%emt 0:00:39]} Ne6 {[%emt 0:02:04]} 28. g3 {[%emt 0:00:32]} Qd6 {[%emt 0:05:08]} 29. Qe2 {[%emt 0:00:54]} Nc7 {[%emt 0:01:42]} 30. Qe4 {[%emt 0:00:37]} Rcd8 {[%emt 0:01:32]} 31. Rbd1 {[%emt 0:00:41]} Nd5 {[%emt 0:01:09]} 32. Qc4 {[%emt 0:00:45]} Kf8 {[%emt 0:02:40]} 33. Bg2 {[%emt 0:00:16]} f5 {[%emt 0:02:31]} 34. Bxd5 {[%emt 0:04:12]} Qxd5 {[%emt 0:00:05]} 35. Qxd5 {[%emt 0:00:26]} Rxd5 {[%emt 0:00:04]} 36. Kf1 {[%emt 0:00:46]} Red8 {[%emt 0:01:10]} 37. Ke2 {[%emt 0:00:19]} Kf7 {[%emt 0:00:45]} 38. Rg1 {[%emt 0:00:50]} R8d6 {[%emt 0:05:36]} 39. h4 {[%emt 0:00:30]} h6 {[%emt 0:01:27]} 40. Rh1 {[%emt 0:00:29]} Re6 {[%emt 0:02:23]} 41. Ke3 {[%emt 0:15:24]} Kf6 {[%emt 0:01:39]} 42. Ke2 {[%emt 0:03:24]} Rd7 {[%emt 0:02:36]} 43. Ke3 {[%emt 0:03:40]} Red6 {[%emt 0:01:12]} 44. Ke2 {[%emt 0:00:44]} Rb7 {[%emt 0:00:10]} 45. Ra1 {[%emt 0:02:26]} g6 {[%emt 0:02:37]} 46. Rhg1 {[%emt 0:01:31]} h5 {[%emt 0:02:22]} 47. Rgf1 {[%emt 0:01:56]} Rd8 {[%emt 0:00:36]} 48. Rfe1 {[%emt 0:01:21]} f4 {[%emt 0:01:28]} 49. Rg1 {[%emt 0:02:58]} Rbd7 {[%emt 0:01:18]} 50. gxf4 {[%emt 0:00:39]} exf4 {[%emt 0:00:14]} 51. Rad1 {[%emt 0:00:11]} Rd5 {[%emt 0:00:59]} 52. Rh1 {[%emt 0:01:06]} Rf5 {[%emt 0:02:22]} 53. Kf3 {[%emt 0:00:15]} Rfd5 {[%emt 0:00:12]} 54. Ke2 {[%emt 0:00:59]} g5 {[%emt 0:02:08]} 55. hxg5+ {[%emt 0:00:09]} Rxg5 {[%emt 0:01:23]} 56. Kf3 {[%emt 0:00:43]} Rf5 {[%emt 0:02:19]} 57. d4 {[%emt 0:01:04]} cxd4 {[%emt 0:03:31]} 58. Rxd4 {[%emt 0:00:14]} Rxd4 {[%emt 0:04:36]} 59. cxd4 {[%emt 0:00:22]} b5 {[%emt 0:02:25]} 60. axb5 {[%emt 0:00:55]} Rxb5 {[%emt 0:00:10]} 61. Kxf4 {[%emt 0:00:22]} Rf5+ {[%emt 0:01:46]} 62. Ke3 {[%emt 0:00:36]} Rb5 {[%emt 0:00:12]} 63. Ke4 {[%emt 0:00:27]} Ke6 {[%emt 0:00:15]} 64. Rh3 {[%emt 0:00:24]} Rf5 {[%emt 0:02:50]} 65. f4 {[%emt 0:00:23]} Rb5 {[%emt 0:00:18]} 66. Rc3 {[%emt 0:00:44]} h4 {[%emt 0:01:27]} 67. Rc6+ {[%emt 0:00:30]} Ke7 {[%emt 0:00:14]} 68. Rh6 {[%emt 0:00:30]} Rxb3 {[%emt 0:00:04]} 69. Rxh4 {[%emt 0:00:06]} Rb5 {[%emt 0:00:53]} 70. Rh7+ {[%emt 0:00:26]} Ke6 {[%emt 0:00:54]} 71. d5+ {[%emt 0:00:58]} Kd6 {[%emt 0:00:07]} 72. Rh6+ {[%emt 0:00:07]} Ke7 {[%emt 0:00:49]} 73. Ke5 {[%emt 0:00:11]} Rb1 {[%emt 0:00:57]} 74. Rh7+ {[%emt 0:00:09]} Kd8 {[%emt 0:00:50]} 75. Ke6 {[%emt 0:00:20]} Re1+ {[%emt 0:01:35]} 76. Kd6 {[%emt 0:00:09]} Kc8 {[%emt 0:00:09]} 77. Rh8+ {[%emt 0:01:15]} Kb7 {[%emt 0:00:03]} 78. f5 {[%emt 0:01:05]} Rf1 {[%emt 0:00:33]} 79. Ke6 {[%emt 0:00:22]} Re1+ {[%emt 0:00:07]} 80. Kf6 {[%emt 0:00:50]} Rd1 {[%emt 0:00:31]} 81. Ke6 {[%emt 0:00:19]} Re1+ {[%emt 0:00:17]} 82. Kf7 {[%emt 0:00:22]} a4 {[%emt 0:04:42]} 83. d6 {[%emt 0:00:54]} Kc6 {[%emt 0:00:52]} 84. Ra8 {[%emt 0:00:25]} Ra1 {[%emt 0:00:23]} 85. Ra6+ {[%emt 0:00:38]} Kd7 {[%emt 0:00:08]} 86. f6 {[%emt 0:00:26]} a3 {[%emt 0:00:44]} 87. Ra7+ {[%emt 0:00:34]} Kxd6 {[%emt 0:00:08]} 88. Ke8 {[%emt 0:00:29]} Re1+ {[%emt 0:01:42]} 89. Kd8 {[%emt 0:00:35]} Rf1 {[%emt 0:00:17]} 90. Ra6+ {[%emt 0:00:19]} Ke5 {[%emt 0:00:10]} 91. Ke7 {[%emt 0:00:15]} Rb1 {[%emt 0:04:34]} 92. Ra5+ {[%emt 0:00:19]} Kf4 {[%emt 0:02:02]} 93. f7 {[%emt 0:00:15]} Rb7+ {[%emt 0:00:14]} 94. Kf6 {[%emt 0:00:12]} Rb8 {[%emt 0:00:47]} 95. Kg7 {[%emt 0:00:12]} Rb7 {[%emt 0:00:29]} 96. Kg8 {[%emt 0:00:10]} Ke4 1-0